bitfinex/quotes_BTCUSD_20250108
["timestamp","ask_amount","ask_price","bid_price","bid_amount"]
[1736362375060,0.00132693,94212.0,94194.0,0.212325]
[1736362375267,0.10562669,94212.0,94194.0,0.212325]
[1736362375484,0.212289,94211.0,94191.0,0.212333]
[1736362375872,0.10429976,94212.0,94194.0,0.19032499]
[1736362376109,0.212289,94211.0,94192.0,0.212332]
[1736362376240,0.24394738,94211.0,94192.0,0.212332]
[1736362376436,0.03165838,94211.0,94192.0,0.212332]
[1736362376639,0.212291,94210.0,94192.0,0.212332]
[1736362376866,0.212291,94210.0,94191.0,0.02133585]
[1736362377181,0.212291,94210.0,94153.0,0.30689213]
[1736362377182,0.212321,94197.0,94176.0,0.212366]
[1736362377321,0.10561362,94196.0,94176.0,0.212366]
[1736362377522,0.10561362,94196.0,94155.0,0.19298677]
[1736362377523,0.212335,94191.0,94173.0,0.01210225]
[1736362377821,0.10429976,94190.0,94168.0,0.212386]
[1736362378072,0.10429976,94190.0,94159.0,0.0771]
[1736362378073,0.212352,94184.0,94164.0,0.212394]
[1736362378269,0.13742502,94183.0,94164.0,0.212394]
[1736362378846,0.424708,94182.0,94163.0,0.01225547]
[1736362379045,0.10562713,94181.0,94163.0,0.01225547]
[1736362379307,0.10562713,94181.0,94176.0,0.001]
[1736362379495,0.212359,94180.0,94176.0,0.001]
[1736362379704,0.0459,94178.0,94176.0,0.001]
[1736362379911,0.10562726,94177.0,94155.0,0.08475659]
[1736362380163,0.212368,94176.0,94156.0,0.212413]
[1736362380365,0.212372,94174.0,94156.0,0.212413]
[1736362380511,0.212377,94172.0,94155.0,0.08475659]
[1736362380716,0.10429976,94172.0,94167.0,0.001]
[1736362380926,0.212379,94171.0,94167.0,0.001]
[1736362381454,0.10562725,94170.0,94167.0,0.001]
[1736362381589,0.212384,94169.0,94167.0,0.001]
[1736362381798,0.10562737,94168.0,94167.0,0.001]
[1736362382055,0.212413,94156.0,94155.0,0.08475659]
[1736362382246,0.43459466,94156.0,94155.0,0.08475659]
[1736362383079,0.39211276,94156.0,94155.0,0.08475659]
[1736362385351,0.39711276,94156.0,94155.0,0.08475659]
[1736362385554,0.39711276,94156.0,94150.0,4e-05]
[1736362385555,0.25,94155.0,94150.0,4e-05]
[1736362385776,0.212447,94141.0,94127.0,0.0016588]
[1736362385987,0.291276,94128.0,94127.0,0.0016588]
[1736362386198,0.39557576,94128.0,94127.0,0.0016588]
[1736362387156,0.39572735,94128.0,94127.0,0.0016588]
[1736362387891,0.46484735,94128.0,94127.0,0.0016588]
[1736362388090,0.56382579,94128.0,94127.0,0.0016588]
[1736362388300,0.1162785,94128.0,94127.0,0.0016588]
[1736362388575,0.00215159,94128.0,94127.0,0.0016588]
[1736362388931,0.10445135,94128.0,94127.0,0.0016588]
[1736362389095,0.1147795,94128.0,94127.0,0.0016588]
[1736362389296,0.1097795,94128.0,94127.0,0.0016588]
[1736362389580,0.16325085,94128.0,94127.0,0.0016588]
[1736362389901,0.1057795,94128.0,94127.0,0.0016588]
[1736362390140,0.1077795,94128.0,94127.0,0.0016588]
[1736362390345,0.1107795,94128.0,94127.0,0.0016588]
[1736362390864,0.1107795,94128.0,94096.0,0.19225679]
[1736362391040,0.288897,94119.0,94094.0,5e-05]
[1736362391248,0.212514,94112.0,94094.0,5e-05]
[1736362391451,0.10562822,94111.0,94094.0,5e-05]
[1736362391831,0.212519,94109.0,94094.0,5e-05]
[1736362392044,0.212524,94107.0,94094.0,5e-05]
[1736362392242,0.10562821,94106.0,94094.0,5e-05]
[1736362392474,0.03181472,94105.0,94094.0,5e-05]
[1736362392651,0.10429976,94104.0,94094.0,5e-05]
[1736362393248,0.212533,94103.0,94094.0,5e-05]
[1736362393466,0.212537,94101.0,94094.0,5e-05]
[1736362393665,0.10562828,94100.0,94094.0,5e-05]
[1736362393867,0.212547,94097.0,94094.0,5e-05]
[1736362394068,0.212551,94095.0,94094.0,5e-05]
[1736362394305,0.31685076,94095.0,94094.0,5e-05]
[1736362394741,0.49255076,94095.0,94094.0,5e-05]
[1736362394952,0.51555076,94095.0,94094.0,5e-05]
[1736362395128,0.59700203,94095.0,94094.0,5e-05]
[1736362395325,0.57822029,94095.0,94094.0,5e-05]
[1736362395527,0.50906029,94095.0,94094.0,5e-05]
[1736362395731,0.10445127,94095.0,94094.0,5e-05]
[1736362395981,0.10745127,94095.0,94085.0,0.212571]
[1736362396192,0.10429976,94094.0,94081.0,0.212581]
[1736362396374,0.2138836,94093.0,94068.0,0.31863093]
[1736362396578,0.00015151,94095.0,94087.0,0.212567]
[1736362396819,0.00015151,94095.0,94091.0,0.212558]
[1736362397025,0.00815151,94095.0,94091.0,0.212558]
[1736362397427,0.00015151,94095.0,94091.0,0.425116]
[1736362397760,0.00315151,94095.0,94091.0,0.425116]
[1736362397962,0.00315151,94095.0,94091.0,0.212558]
[1736362398163,0.00315151,94095.0,94082.0,0.22407884]
[1736362398518,0.00015151,94095.0,94090.0,0.212561]
[1736362398896,0.00015151,94095.0,94083.0,0.212578]
[1736362398897,0.00015151,94095.0,94087.0,0.212568]
[1736362399094,0.00015151,94095.0,94083.0,0.212578]
[1736362399095,0.005,94093.0,94083.0,0.212578]
[1736362399298,0.00015151,94095.0,94083.0,0.212578]
[1736362399499,0.02126895,94094.0,94082.0,0.0115963]
[1736362399703,0.02126895,94094.0,94083.0,0.212578]
[1736362400104,0.02117693,94094.0,94083.0,0.212578]
[1736362400313,0.10429976,94094.0,94075.0,0.01169559]
[1736362400656,0.10429976,94094.0,94052.0,0.212646]
[1736362400657,0.10562833,94093.0,94070.0,0.212605]
[1736362400929,0.023,94086.0,94062.0,0.07247312]
[1736362401067,0.023,94086.0,94058.0,0.212633]
[1736362401068,0.212597,94075.0,94063.0,0.07247312]
[1736362401269,0.10562868,94074.0,94063.0,0.07247312]
[1736362401522,0.212562,94090.0,94063.0,0.07247312]
[1736362401693,0.10562854,94089.0,94063.0,0.07247312]
[1736362401913,0.00015151,94095.0,94064.0,0.10429976]
[1736362402127,0.003,94086.0,94069.0,0.212608]
[1736362402337,0.10562835,94085.0,94076.0,0.212592]
[1736362402539,0.00132872,94084.0,94068.0,0.212611]
[1736362402701,0.10429976,94083.0,94063.0,0.07247312]
[1736362402905,0.10429976,94083.0,94062.0,0.212625]
[1736362402906,0.00132889,94082.0,94062.0,0.212625]
[1736362403110,0.10429976,94081.0,94062.0,0.212625]
[1736362403460,0.00132889,94080.0,94062.0,0.212625]
[1736362403775,0.10429976,94079.0,94062.0,0.212625]
[1736362403973,0.05440726,94078.0,94062.0,0.212625]
[1736362404119,0.10429976,94077.0,94062.0,0.212625]
[1736362404329,0.00132889,94076.0,94062.0,0.212625]
[1736362404528,0.10429976,94075.0,94062.0,0.212625]
[1736362404732,0.00132889,94074.0,94062.0,0.212625]
[1736362404911,0.10429976,94073.0,94062.0,0.212625]
[1736362405120,0.06916,94107.0,94063.0,0.10429976]
[1736362405317,0.002,94077.0,94066.0,0.15]
[1736362405527,0.002,94077.0,94067.0,0.29946686]
[1736362405900,0.005,94094.0,94084.0,0.212574]
[1736362406115,0.10562829,94093.0,94069.0,0.02180954]
[1736362406317,0.00132853,94093.0,94071.0,0.212605]
[1736362406454,0.00132839,94110.0,94072.0,0.10429976]
[1736362406663,0.212533,94103.0,94085.0,0.212572]
[1736362406861,0.00132853,94102.0,94085.0,0.212572]
[1736362407482,0.10429976,94094.0,94077.0,0.21259]
[1736362407686,0.10429976,94094.0,94070.0,0.212607]
[1736362407687,0.01044513,94093.0,94070.0,0.212607]
[1736362407884,0.023,94090.0,94067.0,0.01174818]
[1736362408189,0.10429976,94089.0,94058.0,0.2289]
[1736362408376,0.01044513,94093.0,94077.0,0.21259]
[1736362408580,0.11474489,94093.0,94077.0,0.21259]
[1736362408788,0.11725085,94092.0,94077.0,0.21259]
[1736362409026,0.11725085,94092.0,94074.0,0.212598]
[1736362409287,0.11725085,94092.0,94067.0,0.212614]
[1736362409288,0.212567,94088.0,94068.0,0.212612]
[1736362409490,0.10562845,94087.0,94067.0,0.01170929]
[1736362409761,0.023,94085.0,94065.0,0.212616]
[1736362409963,0.58615555,94084.0,94065.0,0.212616]
[1736362410183,0.58615555,94084.0,94061.0,0.02621161]
[1736362410184,0.00132884,94083.0,94061.0,0.02621161]
[1736362410388,0.10429976,94082.0,94061.0,0.02621161]
[1736362410739,0.023,94080.0,94061.0,0.0144104]
[1736362411021,0.212592,94077.0,94059.0,0.212632]
[1736362411166,0.31821567,94079.0,94059.0,0.212632]
[1736362411167,0.10562867,94076.0,94059.0,0.212632]
[1736362411603,0.10429976,94076.0,94060.0,0.21263]
[1736362411808,0.10429976,94076.0,94057.0,0.05684784]
[1736362411982,0.10429976,94076.0,94061.0,0.212627]
[1736362412385,0.10729976,94076.0,94065.0,0.212617]
[1736362412590,0.10529976,94076.0,94065.0,0.212617]
[1736362413127,0.10729976,94076.0,94065.0,0.425235]
[1736362413363,0.01205882,94075.0,94057.0,0.01154784]
[1736362413570,0.023,94073.0,94050.0,5e-05]
[1736362413754,0.212607,94070.0,94050.0,0.2127]
[1736362413951,0.10562879,94069.0,94050.0,0.2127]
[1736362414125,0.212612,94068.0,94050.0,5e-05]
[1736362414336,0.15871357,94067.0,94050.0,0.212702]
[1736362414506,0.15871357,94067.0,94054.0,0.212643]
[1736362414716,0.10562879,94067.0,94054.0,0.212643]
[1736362414920,0.00132903,94066.0,94057.0,0.212635]
[1736362415127,0.10429976,94065.0,94054.0,0.212643]
[1736362415360,0.10429976,94065.0,94051.0,0.212649]
[1736362415567,0.10429976,94065.0,94054.0,0.212641]
[1736362415973,0.10429976,94065.0,94054.0,0.19064099]
[1736362416191,0.00015142,94065.0,94050.0,5e-05]
[1736362416366,0.00015142,94065.0,94064.0,0.212621]
[1736362416560,0.00415142,94065.0,94064.0,0.44292076]
[1736362416829,0.00415142,94065.0,94064.0,1.838621]
[1736362416959,0.00415142,94065.0,94064.0,0.59292076]
[1736362417203,0.00415142,94065.0,94064.0,0.487621]
[1736362417560,0.00415142,94065.0,94064.0,0.59192076]
[1736362417804,0.00315142,94065.0,94064.0,0.59092076]
[1736362417952,0.00315142,94065.0,94064.0,0.486621]
[1736362418155,0.00415142,94065.0,94064.0,0.486621]
[1736362418562,0.00015142,94065.0,94064.0,0.49734392]
[1736362418984,0.00215142,94065.0,94064.0,0.49634392]
[1736362419427,0.00015142,94065.0,94064.0,0.49534392]
[1736362419779,0.00015142,94065.0,94064.0,0.49434392]
[1736362420624,0.00015142,94065.0,94064.0,0.253721]
[1736362421075,0.00015142,94065.0,94064.0,0.206621]
[1736362422643,0.00115142,94065.0,94064.0,0.206621]
[1736362422850,0.00015142,94065.0,94064.0,0.206621]
[1736362423259,0.00115142,94065.0,94064.0,0.206621]
[1736362423624,0.00015142,94065.0,94062.0,0.425248]
[1736362424028,0.00015142,94065.0,94061.0,0.212625]
[1736362424240,0.00015142,94065.0,94050.0,0.02151159]
[1736362424440,0.00015142,94065.0,94050.0,5e-05]
[1736362424642,0.10429976,94064.0,94050.0,5e-05]
[1736362424851,0.01177415,94063.0,94050.0,5e-05]
[1736362425066,0.212627,94061.0,94050.0,5e-05]
[1736362425267,0.023,94059.0,94050.0,5e-05]
[1736362425473,0.21265,94052.0,94050.0,5e-05]
[1736362425679,0.13745694,94051.0,94050.0,5e-05]
[1736362425871,0.10562904,94051.0,94034.0,0.202273]
[1736362426085,0.01962664,94058.0,94034.0,0.11585935]
[1736362426297,0.01962664,94058.0,94035.0,0.10429976]
[1736362426542,0.01962664,94058.0,94036.0,0.212684]
[1736362426851,0.01962664,94058.0,94048.0,0.212656]
[1736362427078,0.002,94051.0,94035.0,0.02168943]
[1736362427286,0.10562889,94057.0,94035.0,0.03342231]
[1736362427483,0.01252555,94056.0,94036.0,0.212684]
[1736362427657,0.001,94051.0,94041.0,0.212672]
[1736362428120,0.10529976,94051.0,94037.0,0.212682]
[1736362428526,0.10429976,94051.0,94037.0,0.212682]
[1736362428724,0.10429976,94051.0,94034.0,0.212689]
[1736362428924,0.10429976,94051.0,94038.0,0.212677]
[1736362429327,0.0107629,94050.0,94034.0,0.212689]
[1736362430164,0.10562895,94049.0,94033.0,7e-05]
[1736362430365,0.212657,94048.0,94033.0,7e-05]
[1736362430519,0.18602908,94047.0,94033.0,7e-05]
[1736362430723,0.212661,94046.0,94033.0,7e-05]
[1736362430923,0.1056291,94045.0,94026.0,0.19077599]
[1736362431123,0.1056291,94045.0,94024.0,0.212711]
[1736362431124,0.212666,94044.0,94024.0,0.212711]
[1736362431406,0.1286291,94043.0,94020.0,0.049]
[1736362431554,0.3412971,94043.0,94017.0,0.312725]
[1736362431754,0.023,94041.0,94017.0,0.312725]
[1736362431960,0.212693,94033.0,94017.0,0.1]
[1736362432118,0.06916,94036.0,94017.0,0.1]
[1736362432318,0.06916,94047.0,94035.0,0.212686]
[1736362432543,0.00132923,94057.0,94035.0,0.212686]
[1736362432742,0.06916,94066.0,94021.0,0.15]
[1736362432966,0.17478878,94065.0,94049.0,0.212652]
[1736362433285,0.212631,94060.0,94037.0,0.21268]
[1736362433494,0.1056289,94059.0,94037.0,0.21268]
[1736362433696,0.008,94057.0,94037.0,0.21268]
[1736362433905,0.16125489,94056.0,94018.0,0.081]
[1736362434111,0.023,94055.0,94028.0,0.212701]
[1736362434314,0.002,94044.0,94018.0,0.081]
[1736362434521,0.10629976,94044.0,94033.0,0.212689]
[1736362434721,0.10429976,94044.0,94030.0,0.212696]
[1736362434943,0.10429976,94044.0,94026.0,0.212706]
[1736362435149,0.10429976,94044.0,94022.0,0.212716]
[1736362435382,0.10429976,94044.0,94028.0,0.2127]
[1736362435858,0.10629976,94044.0,94028.0,0.19069999]
[1736362436034,0.002,94044.0,94020.0,0.06022051]
[1736362436238,0.002,94044.0,94021.0,0.10429976]
[1736362436452,0.008,94044.0,94021.0,0.10429976]
[1736362436678,0.008,94044.0,94032.0,0.212691]
[1736362436868,0.008,94044.0,93985.0,0.14279006]
[1736362436869,0.1,94019.0,93985.0,0.14279006]
[1736362437039,0.41706276,94001.0,93988.0,0.10620892]
[1736362437639,0.10429976,94001.0,93988.0,0.09467457]
[1736362437840,0.10429976,94001.0,94000.0,1.27095127]
[1736362438096,0.212728,94017.0,94000.0,1.27095127]
[1736362438301,0.10562951,94016.0,94000.0,1.10509069]
[1736362438531,0.00415125,94001.0,94000.0,1.10509069]
[1736362438771,0.1,94049.0,94000.0,1.10509069]
[1736362438772,0.09449112,94042.0,94001.0,0.25]
[1736362438976,0.09449112,94042.0,94000.0,1.25739045]
[1736362438977,0.19879088,94042.0,94031.0,0.212694]
[1736362439180,0.09449112,94042.0,94035.0,0.048]
[1736362439962,0.009,94042.0,94035.0,0.048]
[1736362440245,0.09449112,94067.0,94035.0,0.048]
[1736362440246,0.21394706,94066.0,94035.0,0.048]
[1736362440459,0.00015204,94042.0,94035.0,0.048]
[1736362440804,0.00015204,94042.0,94035.0,0.02599999]
[1736362441004,0.10429976,94041.0,94007.0,0.06916]
[1736362441208,0.023,94039.0,94035.0,0.003]
[1736362441426,0.10429976,94038.0,94035.0,0.003]
[1736362441628,0.00115204,94042.0,94021.0,0.212718]
[1736362441805,0.00115204,94042.0,94020.0,0.13052336]
[1736362442008,0.00115204,94042.0,94002.0,0.1]
[1736362442009,0.10429976,94041.0,94019.0,0.212722]
[1736362442211,0.212677,94039.0,94011.0,0.15]
[1736362442457,0.023,94037.0,94010.0,0.0769]
[1736362442679,0.212713,94024.0,94000.0,1.10509069]
[1736362442862,0.10429976,94023.0,94000.0,1.10509069]
[1736362443071,0.212725,94018.0,94000.0,1.10509069]
[1736362443275,0.10562942,94017.0,94000.0,1.10509069]
[1736362443822,0.00132966,94017.0,94001.0,0.212763]
[1736362444048,0.2127,94029.0,94000.0,1.10709069]
[1736362444267,0.16957088,94028.0,94001.0,0.212763]
[1736362444476,0.10562931,94028.0,94001.0,0.425526]
[1736362444706,0.212704,94027.0,94001.0,0.212763]
[1736362444862,0.10429976,94026.0,94001.0,0.212763]
[1736362445094,0.212711,94024.0,94000.0,1.10509069]
[1736362445309,0.21272,94021.0,94000.0,1.10509069]
[1736362445500,0.10429976,94020.0,94000.0,1.10509069]
[1736362445702,0.001,94028.0,94001.0,0.15]
[1736362446076,0.001,94028.0,94015.0,0.21273]
[1736362446279,0.001,94028.0,94015.0,0.425461]
[1736362446456,0.001,94028.0,94011.0,1.712738]
[1736362446707,0.001,94028.0,94015.0,0.21273]
[1736362446840,0.00148141,94042.0,94015.0,0.21273]
[1736362447037,0.003,94028.0,94015.0,0.21273]
[1736362447242,0.10429976,94027.0,94002.0,0.21276]
[1736362447442,0.10429976,94027.0,94000.0,1.10509069]
[1736362447443,0.212712,94024.0,94000.0,1.10509069]
[1736362447646,0.10429976,94023.0,94000.0,1.10509069]
[1736362447862,0.10562935,94023.0,94000.0,1.10509069]
[1736362448063,0.002,94028.0,94006.0,0.212751]
[1736362448289,0.10429976,94027.0,94000.0,1.23561405]
[1736362448489,0.01062998,94026.0,94011.0,0.212739]
[1736362448666,0.10429976,94026.0,94011.0,0.212739]
[1736362448870,0.10429976,94026.0,94007.0,0.212749]
[1736362449411,0.10399617,94026.0,94006.0,0.21275]
[1736362449619,0.10429976,94014.0,94000.0,1.10509069]
[1736362449822,0.212752,94007.0,94000.0,1.10509069]
[1736362450023,0.1056296,94006.0,94000.0,1.10509069]
[1736362450431,0.425509,94005.0,94000.0,1.10509069]
[1736362450568,0.212759,94003.0,94000.0,1.10509069]
[1736362450770,0.10429976,94002.0,94000.0,1.08309068]
[1736362451027,0.212763,94001.0,94000.0,1.08309068]
[1736362451167,0.31706276,94001.0,94000.0,1.08309068]
[1736362451404,0.31706276,94001.0,94000.0,1.08359675]
[1736362451618,0.37004494,94001.0,94000.0,1.08359675]
[1736362452056,0.39304494,94001.0,94000.0,1.08359675]
[1736362452257,0.49304494,94001.0,94000.0,1.08359675]
[1736362452614,0.74304494,94001.0,94000.0,1.08359675]
[1736362452824,0.74304494,94001.0,94000.0,0.93159675]
[1736362453024,0.1,93976.0,93966.0,0.0144104]
[1736362453239,0.31713976,93967.0,93966.0,0.0144104]
[1736362453668,0.10429976,93967.0,93966.0,0.0144104]
[1736362454573,0.10480646,93967.0,93966.0,0.0144104]
[1736362454952,0.0200798,93967.0,93966.0,0.0144104]
[1736362455713,0.0200798,93967.0,93966.0,1.7272524]
[1736362455920,0.0200798,93967.0,93966.0,0.212842]
[1736362456295,0.0270798,93967.0,93966.0,0.212842]
[1736362456449,0.0270798,93967.0,93966.0,0.213842]
[1736362456852,0.0085067,93967.0,93966.0,0.214842]
[1736362457051,0.0085067,93967.0,93966.0,0.213842]
[1736362457253,0.0085067,93967.0,93966.0,0.214842]
[1736362457737,0.0005067,93967.0,93966.0,0.001]
[1736362457867,0.10480646,93967.0,93953.0,0.25867]
[1736362458068,0.10480646,93967.0,93966.0,0.001]
[1736362458069,0.10580646,93967.0,93966.0,0.001]
[1736362458268,0.10680646,93967.0,93966.0,0.001]
[1736362459180,0.10813683,93967.0,93966.0,0.001]
[1736362459379,0.10613683,93967.0,93953.0,0.0458]
[1736362459612,0.10429976,93966.0,93954.0,0.0797]
[1736362459802,0.10429976,93963.0,93954.0,0.001]
[1736362460008,0.00133055,93962.0,93954.0,0.001]
[1736362460211,0.10429976,93961.0,93954.0,0.001]
[1736362460649,0.10429976,93961.0,93945.0,0.21289]
[1736362460859,0.0005067,93967.0,93954.0,0.002]
[1736362461040,0.0005067,93967.0,93951.0,0.1226]
[1736362461041,0.002,93963.0,93955.0,0.212867]
[1736362461331,0.003,93961.0,93952.0,0.212874]
[1736362461533,0.003,93961.0,93951.0,0.1226]
[1736362461534,0.10429976,93960.0,93951.0,0.1226]
[1736362462090,0.212859,93959.0,93951.0,0.1226]
[1736362462291,0.10429976,93956.0,93950.0,0.10005]
[1736362462518,0.212874,93952.0,93950.0,0.10005]
[1736362462750,0.10429976,93951.0,93950.0,0.10005]
[1736362463885,0.10429976,93951.0,93950.0,0.10105]
[1736362464225,0.10429976,93951.0,93950.0,0.10205]
[1736362465588,0.10429976,93951.0,93950.0,0.10305]
[1736362465813,0.10429976,93951.0,93950.0,0.10105]
[1736362465997,0.1858593,93951.0,93950.0,0.07904999]
[1736362466210,0.10429976,93951.0,93950.0,0.07804999]
[1736362466340,0.10629976,93951.0,93950.0,0.07804999]
[1736362466761,0.10629976,93951.0,93950.0,0.07522057]
[1736362467261,0.10629976,93951.0,93931.0,0.21292]
[1736362467483,0.00133066,93950.0,93931.0,0.21292]
[1736362467689,0.10429976,93949.0,93935.0,0.212911]
[1736362467934,0.10429976,93949.0,93931.0,0.21292]
[1736362468125,0.002,93951.0,93927.0,0.15]
[1736362468330,0.10429976,93950.0,93940.0,0.2129]
[1736362468628,0.002,93951.0,93945.0,0.0496]
[1736362468850,0.00133054,93962.0,93946.0,0.508076]
[1736362468987,0.0005067,93967.0,93946.0,0.0823]
[1736362468988,0.10429976,93961.0,93946.0,0.0823]
[1736362469390,0.002,93951.0,93946.0,0.0823]
[1736362469703,0.10429976,93961.0,93946.0,0.0823]
[1736362470172,0.00133039,93960.0,93946.0,0.0823]
[1736362470391,0.10429976,93959.0,93946.0,0.0823]
[1736362470674,0.10563017,93959.0,93946.0,0.0823]
[1736362470930,0.212861,93958.0,93946.0,0.06029999]
[1736362471096,0.10429976,93957.0,93945.0,0.001]
[1736362471305,0.2246265,93956.0,93945.0,0.001]
[1736362471448,0.10429976,93955.0,93945.0,0.001]
[1736362471871,0.10429976,93955.0,93925.0,0.0496]
[1736362471872,0.00133056,93954.0,93931.0,0.212921]
[1736362472069,0.212882,93949.0,93931.0,0.212921]
[1736362472292,0.10429976,93948.0,93931.0,0.212921]
[1736362472721,0.10429976,93948.0,93936.0,0.21291]
[1736362472982,0.001,93954.0,93925.0,0.0496]
[1736362473184,0.001,93954.0,93926.0,0.10429976]
[1736362473405,0.001,93954.0,93940.0,0.2129]
[1736362473579,0.001,93948.0,93941.0,0.212899]
[1736362473782,0.10429976,93953.0,93942.0,0.0774]
[1736362474731,0.03184903,93952.0,93942.0,0.0774]
[1736362474937,0.10429976,93951.0,93942.0,0.0774]
[1736362475340,0.21420952,93950.0,93942.0,0.0774]
[1736362475516,0.10429976,93949.0,93942.0,0.0774]
[1736362475864,0.10429976,93949.0,93931.0,0.19092099]
[1736362476070,0.212857,93960.0,93930.0,0.0821]
[1736362476071,0.212867,93956.0,93942.0,0.001]
[1736362476221,0.10429976,93955.0,93942.0,0.001]
[1736362476418,0.001,93951.0,93942.0,0.001]
[1736362476625,0.10429976,93955.0,93936.0,0.212909]
[1736362476827,0.212872,93953.0,93942.0,0.001]
[1736362477012,0.212895,93944.0,93942.0,0.001]
[1736362477215,0.10429976,93943.0,93942.0,0.001]
[1736362477636,0.10563048,93943.0,93942.0,0.001]
[1736362478034,0.212897,93942.0,93925.0,0.0496]
[1736362478236,0.10429976,93941.0,93925.0,0.0496]
[1736362478603,0.212901,93940.0,93925.0,0.0496]
[1736362478884,0.10429976,93939.0,93925.0,0.262533]
[1736362479171,0.10429976,93939.0,93925.0,0.0496]
[1736362479374,0.10429976,93939.0,93925.0,0.0506]
[1736362479576,0.15744201,93939.0,93925.0,0.0506]
[1736362479935,0.01956999,93938.0,93925.0,0.0516]
[1736362480132,0.12386975,93938.0,93925.0,0.0516]
[1736362480359,0.01956999,93938.0,93926.0,0.212933]
[1736362480563,0.01956999,93938.0,93930.0,0.212922]
[1736362480768,0.01956999,93937.0,93932.0,0.212919]
[1736362480969,0.01956999,93937.0,93925.0,0.0506]
[1736362481174,0.02007637,93937.0,93934.0,0.212914]
[1736362481333,0.02007637,93937.0,93936.0,0.21291]
[1736362482423,0.00050638,93937.0,93936.0,0.21291]
[1736362482575,0.00050638,93937.0,93936.0,0.21391]
[1736362482803,0.00150638,93937.0,93936.0,0.21491]
[1736362483005,0.00150638,93937.0,93936.0,0.21291]
[1736362483403,0.00350638,93937.0,93936.0,0.21491]
[1736362484821,0.01666423,93964.0,93962.0,0.212851]
[1736362485020,0.01666423,93964.0,93963.0,0.0752]
[1736362485218,0.01666423,93964.0,93963.0,0.1228]
[1736362485875,0.01666423,93964.0,93963.0,0.10079999]
[1736362486062,0.01766423,93964.0,93963.0,0.10079999]
[1736362486258,0.001,93964.0,93963.0,0.10079999]
[1736362486466,0.004,93964.0,93963.0,0.10079999]
[1736362486658,0.003,93964.0,93958.0,0.01484273]
[1736362486884,0.10429976,93976.0,93946.0,0.0451]
[1736362487082,0.10429976,93976.0,93964.0,0.212846]
[1736362487291,0.212792,93989.0,93969.0,0.212835]
[1736362487531,0.212782,93993.0,93950.0,0.19599943]
[1736362487532,0.212803,93984.0,93965.0,0.212843]
[1736362487731,0.10562988,93983.0,93965.0,0.212843]
[1736362487892,0.10562988,93983.0,93949.0,0.212881]
[1736362487893,0.31710376,93983.0,93966.0,0.212842]
[1736362488296,0.31710376,93983.0,93970.0,0.212832]
[1736362488297,0.10429976,93983.0,93970.0,0.212832]
[1736362488521,0.10429976,93983.0,93970.0,0.00015125]
[1736362488727,0.212826,93974.0,93970.0,0.00015125]
[1736362488900,0.212829,93972.0,93970.0,0.00015125]
[1736362489104,0.10563018,93971.0,93970.0,0.00015125]
[1736362490246,0.10563018,93971.0,93970.0,0.00115125]
[1736362490573,0.10563018,93971.0,93970.0,0.00015125]
[1736362490798,0.12527676,93971.0,93946.0,0.23613824]
[1736362491003,0.03401058,93970.0,93946.0,0.23613824]
[1736362491200,0.212838,93968.0,93946.0,0.44902524]
[1736362491531,0.212848,93964.0,93946.0,0.23613824]
[1736362491668,0.10429976,93963.0,93946.0,0.23613824]
[1736362492069,0.212852,93962.0,93946.0,0.02325124]
[1736362492271,0.10429976,93961.0,93946.0,0.23613824]
[1736362492466,0.212856,93960.0,93946.0,0.02325124]
[1736362492671,0.10429976,93959.0,93946.0,0.02325124]
[1736362493249,0.11669439,93959.0,93946.0,0.02325124]
[1736362493557,0.11669439,93959.0,93946.0,0.23613724]
[1736362493681,0.01964658,93958.0,93946.0,0.23613724]
[1736362493907,0.12394634,93958.0,93946.0,0.44902424]
[1736362494155,0.12394634,93958.0,93946.0,0.23613724]
[1736362494503,0.03367983,93957.0,93946.0,0.02325124]
[1736362494705,0.10429976,93956.0,93946.0,0.02325124]
[1736362494874,0.21419752,93955.0,93930.0,0.0498]
[1736362495073,0.10429976,93954.0,93946.0,0.001]
[1736362495289,0.212881,93949.0,93946.0,0.001]
[1736362495524,0.212885,93947.0,93946.0,0.001]
[1736362495735,0.10429976,93947.0,93930.0,0.0498]
[1736362495881,0.10429976,93946.0,93930.0,0.24072199]
[1736362496282,0.00133068,93945.0,93930.0,0.02779999]
[1736362496661,0.00133068,93945.0,93897.0,0.212999]
[1736362496662,0.212895,93943.0,93917.0,0.0814]
[1736362496881,0.10563052,93942.0,93918.0,0.212951]
[1736362497295,0.10563052,93942.0,93914.0,0.212959]
[1736362497486,0.10429976,93939.0,93904.0,0.0814]
[1736362497622,0.212906,93938.0,93916.0,0.212955]
[1736362497826,0.01963929,93941.0,93906.0,0.01459771]
[1736362498030,0.01963929,93941.0,93914.0,0.21296]
[1736362498031,0.10563045,93940.0,93914.0,0.21296]
[1736362498232,0.10563045,93940.0,93930.0,0.001]
[1736362498431,0.03113028,93941.0,93931.0,0.0782]
[1736362498432,0.01979108,93941.0,93931.0,0.0782]
[1736362498837,0.01963929,93939.0,93931.0,0.0782]
[1736362499022,0.01963929,93939.0,93938.0,0.212906]
[1736362499441,0.09375273,93944.0,93940.0,0.0491]
[1736362499648,0.1406291,93947.0,93943.0,0.25]
[1736362499856,0.1406291,93947.0,93946.0,0.273]
[1736362500059,0.18750546,93950.0,93948.0,0.1]
[1736362500265,0.18750546,93950.0,93949.0,0.46718076]
[1736362500562,0.18750546,93950.0,93949.0,0.362881]
[1736362500800,0.212813,93979.0,93963.0,0.212848]
[1736362500981,0.21282,93976.0,93956.0,0.212864]
[1736362501135,0.0212793,93987.0,93945.0,0.0813]
[1736362501136,0.10563016,93975.0,93945.0,0.0813]
[1736362501342,0.10563016,93975.0,93946.0,0.212888]
[1736362501538,0.10563016,93975.0,93950.0,0.212878]
[1736362501539,0.212841,93967.0,93950.0,0.212878]
[1736362501739,0.212845,93965.0,93950.0,0.212878]
[1736362501949,0.02086131,93982.0,93949.0,0.004]
[1736362501950,0.001,93950.0,93949.0,0.004]
[1736362502607,0.10429976,93964.0,93945.0,0.0813]
[1736362502781,0.0013305,93963.0,93950.0,0.001]
[1736362502983,0.10429976,93962.0,93950.0,0.001]
[1736362503340,0.1212793,93987.0,93950.0,0.001]